[Event "World Junior U20 Open 2018"]
[Site "Gebze"]
[Date "2018.09.07"]
[Round "4.60"]
[White "De Block, Yordi"]
[Black "Urazayev, Arystanbek"]
[Result "1-0"]
[ECO "E61"]
[WhiteElo "2118"]
[BlackElo "2333"]
[Annotator "NA"]
[PlyCount "73"]
[EventDate "2018.09.05"]
[EventType "swiss"]
[EventCountry "TUR"]
[SourceTitle "playchess.com"]
[Source "ChessBase"]
[SourceQuality "1"]
[TimeControl "40/5400+30:1800+30"]

1. d4 Nf6 2. Bf4 g6 3. e3 Bg7 4. c4 O-O 5. Nc3 d6 6. Nf3 b6 7. Be2 Bb7 8. h3 Nbd7 9. O-O Re8 10. Qc2 e5 11. dxe5 dxe5 12. Bh2 e4 13. Nd2 c5 14. Rfd1 Qe7 15. a4 h5 16. a5 Bc6 {[%emt 0:36:00]} 17. Ndb1 {[%emt 0:33:30]} Rac8 {[%emt 0:16:30]} 18. axb6 {[%emt 0:02:30]} axb6 {[%emt 0:03:30]} 19. Na3 {[%emt 0:03:30]} Ne5 {[%emt 0:08:30]} 20. Nab5 {[%emt 0:01:30]} Ra8 {[%emt 0:04:30]} 21. Rxa8 {[%emt 0:07:30]} Rxa8 {[%emt 0:08:30]} 22. Nd5 {[%emt 0:00:30]} Nxd5 {[%emt 0:06:28]} 23. cxd5 {[%emt 0:00:30]} Bxb5 {[%emt 0:01:05]} 24. Bxb5 {[%emt 0:00:00]} f5 {[%emt 0:01:00]} 25. d6 {[%emt 0:02:00]} Qe6 {[%emt 0:00:26]} 26. d7 {[%emt 0:06:30]} Rd8 {[%emt 0:01:38]} 27. b4 {[%emt 0:01:30]} cxb4 {[%emt 0:06:08]} 28. Qc7 {[%emt 0:01:30]} Qe7 {[%emt 0:00:46]} 29. Qxb6 {[%emt 0:03:30]} Kh7 {[%emt 0:00:56]} 30. Ba4 {[%emt 0:10:30]} Nd3 {[%emt 0:03:22]} 31. Bd6 {[%emt 0:07:30]} Qf6 {[%emt 0:02:46]} 32. Bc7 {[%emt 0:02:30]} Qb2 {[%emt 0:00:06]} 33. Rf1 {[%emt 0:06:28]} Qa2 {[%emt 0:01:13]} 34. Bb5 {[%emt 0:02:42]} Ra8 {[%emt 0:01:05]} 35. d8=Q {[%emt 0:00:51]} Rxd8 {[%emt 0:00:04]} 36. Bxd8 {[%emt 0:00:07]} b3 {[%emt 0:00:03]} 37. Bc4 {[%emt 0:00:24]} 1-0

[Event "World Junior U20 Open 2018"]
[Site "Gebze"]
[Date "2018.09.07"]
[Round "4.61"]
[White "Erdogan, Anil Berk"]
[Black "Nastase, Robert-Paul"]
[Result "1/2-1/2"]
[ECO "C14"]
[WhiteElo "2083"]
[BlackElo "2313"]
[Annotator "ChessBase"]
[PlyCount "36"]
[EventDate "2018.09.05"]
[EventType "swiss"]
[EventCountry "TUR"]
[SourceTitle "playchess.com"]
[Source "ChessBase"]
[SourceQuality "1"]
[TimeControl "40/5400+30:1800+30"]

1. e4 e6 2. d4 d5 3. Nc3 Nf6 4. Bg5 Be7 5. e5 Nfd7 6. Bxe7 Qxe7 7. f4 a6 8. Qg4 O-O 9. Nf3 f5 10. exf6 Nxf6 11. Qh4 c5 12. Bd3 Nc6 13. dxc5 Qxc5 14. O-O-O {[%emt 0:26:00]} Bd7 {[%emt 0:43:00]} 15. Rhe1 {[%emt 0:16:30]} Kh8 16. Kb1 Kg8 17. Kc1 Kh8 18. Kb1 Kg8 1/2-1/2

[Event "World Junior U20 Open 2018"]
[Site "Gebze"]
[Date "2018.09.07"]
[Round "4.62"]
[White "Ozturk, Efe Hakan"]
[Black "Zlatin, Alexander"]
[Result "1/2-1/2"]
[ECO "E18"]
[WhiteElo "2065"]
[BlackElo "2312"]
[Annotator "NA"]
[PlyCount "256"]
[EventDate "2018.09.05"]
[EventType "swiss"]
[EventCountry "TUR"]
[SourceTitle "playchess.com"]
[Source "ChessBase"]
[SourceQuality "1"]
[TimeControl "40/5400+30:1800+30"]

1. d4 {[%emt 0:00:30]} Nf6 {[%emt 0:00:30]} 2. c4 {[%emt 0:00:30]} e6 {[%emt 0:00:30]} 3. Nf3 {[%emt 0:00:30]} d5 {[%emt 0:00:30]} 4. g3 {[%emt 0:00:00]} Be7 {[%emt 0:00:30]} 5. Bg2 {[%emt 0:00:00]} O-O {[%emt 0:00:30]} 6. O-O {[%emt 0:00:00]} b6 {[%emt 0:00:30]} 7. Nc3 {[%emt 0:04:30]} Bb7 {[%emt 0:02:00]} 8. Ne5 {[%emt 0:00:30]} Na6 {[%emt 0:01:30]} 9. Qa4 {[%emt 0:07:30]} c5 {[%emt 0:02:30] E18: Queen's Indian: Old Main Line (4 g3 Bb7 5 Bg2 Be7 6 0-0 0-0 7 Nc3)} 10. cxd5 {[%emt 0:00:30]} exd5 {[%emt 0:01:30]} 11. Nc6 {[%emt 0:06:30]} (11. Rd1 Qe8 12. Qxe8 Rfxe8 13. dxc5 Bxc5 14. Nd3 Nb4 15. Nxc5 bxc5 16. Bf4 Ba6 17. Rd2 Ne4 18. Nxe4 dxe4 {½-½ (41) Neuman,P (2446)-Zlatin,A (2193) Prague 2018}) 11... Bxc6 {[%emt 0:01:30]} 12. Qxc6 {[%emt 0:00:30]} Nb4 {[%emt 0:00:30]} 13. Qa4 {[%emt 0:00:30]} cxd4 {[%emt 0:00:00]} 14. Nb5 {[%emt 0:00:30]} d3 {[%emt 0:04:30]} 15. exd3 {[%emt 0:03:30]} Nxd3 {[%emt 0:01:30]} 16. Rd1 {[%emt 0:03:30]} Nc5 {[%emt 0:04:30]} 17. Qc2 $146 {[%emt 0:02:30]} ({Predecessor:} 17. Qd4 Nce4 18. Be3 {1-0 (29) Kohler,T (2285)-Berger,H Potsdam 1995}) 17... Ne6 {[%emt 0:04:30]} 18. Qe2 $1 {[%emt 0:07:30]} Bc5 {[%emt 0:25:00]} 19. Nc3 {[%emt 0:42:30]} d4 {[%emt 0:08:30]} 20. Bxa8 {[%emt 0:03:30]} Qxa8 {[%emt 0:00:00]} 21. Na4 {[%emt 0:00:30]} Ne4 {[%emt 0:04:00]} 22. Qf3 {[%emt 0:11:30]} Kh8 {[%emt 0:01:30]} 23. Nxc5 {[%emt 0:09:30]} bxc5 {[%emt 0:00:30]} 24. Re1 {[%emt 0:02:30]} f5 {[%emt 0:00:30]} 25. g4 {[%emt 0:00:30]} g6 {[%emt 0:02:30]} 26. Bh6 {[%emt 0:00:30]} Rg8 {[%emt 0:04:30]} 27. Re2 {[%emt 0:02:30]} Nc3 {[%emt 0:01:30]} 28. Qd3 {[%emt 0:06:30]} Nxe2+ {[%emt 0:01:30]} 29. Qxe2 {[%emt 0:00:30]} Qe4 {[%emt 0:00:30]} 30. Re1 {[%emt 0:00:30]} Qxe2 {[%emt 0:00:30]} 31. Rxe2 {[%emt 0:00:30]} Re8 {[%emt 0:00:30]} 32. gxf5 {[%emt 0:00:30]} gxf5 {[%emt 0:00:30]} 33. Re5 {[%emt 0:00:30]} Rg8+ {[%emt 0:00:30]} 34. Kf1 {[%emt 0:00:30]} Rg6 {[%emt 0:00:30]} 35. Bd2 {[%emt 0:00:30]} Rf6 {[%emt 0:00:30]} 36. Ke2 {[%emt 0:00:30]} c4 {[%emt 0:02:30]} 37. Ra5 {[%emt 0:09:21]} Rf7 {[%emt 0:00:30]} 38. Re5 {[%emt 0:03:04]} Re7 {[%emt 0:07:30]} 39. Kd1 {[%emt 0:05:09]} Kg7 {[%emt 0:01:30]} 40. Rxf5 {[%emt 0:04:05]} Kg6 {[%emt 0:00:00]} 41. Ra5 {[%emt 0:01:51]} Kf6 {[%emt 0:02:00]} 42. f4 {[%emt 0:05:30]} Rg7 {[%emt 0:02:30]} 43. f5 {[%emt 0:00:30]} Rg1+ {[%emt 0:00:00]} 44. Kc2 {[%emt 0:00:30]} Ng7 {[%emt 0:00:00]} 45. Rc5 {[%emt 0:02:30]} Nxf5 {[%emt 0:00:30]} 46. Rxc4 {[%emt 0:00:30]} Rg2 {[%emt 0:00:30]} 47. Rc6+ {[%emt 0:08:46]} Ke5 {[%emt 0:00:30]} 48. h3 {[%emt 0:01:52]} Kd5 {[%emt 0:02:30]} 49. Rc7 {[%emt 0:02:01]} Ke4 {[%emt 0:00:30]} 50. b4 {[%emt 0:03:59]} Ne3+ {[%emt 0:01:30]} 51. Kc1 {[%emt 0:00:06]} Nf1 {[%emt 0:01:30]} 52. Bh6 {[%emt 0:02:06]} Ng3 {[%emt 0:01:30]} 53. Rxa7 {[%emt 0:01:38]} Kd3 {[%emt 0:01:30]} 54. Ra3+ {[%emt 0:01:38]} Kc4 {[%emt 0:00:30]} 55. Ra7 {[%emt 0:04:02]} Ne2+ {[%emt 0:00:30]} 56. Kd2 {[%emt 0:01:00]} Nc3+ {[%emt 0:01:30]} 57. Ke1 {[%emt 0:00:12]} Nxa2 {[%emt 0:03:30]} 58. Rxh7 {[%emt 0:02:15]} Nxb4 {[%emt 0:00:30]} 59. h4 {[%emt 0:00:36]} Nd3+ {[%emt 0:00:30]} 60. Kf1 {[%emt 0:00:16]} Rf2+ {[%emt 0:00:30]} 61. Kg1 {[%emt 0:00:01]} Rf5 {[%emt 0:00:00]} 62. Re7 {[%emt 0:02:46]} Ne5 {[%emt 0:01:00]} 63. Kg2 {[%emt 0:00:37]} d3 {[%emt 0:00:30]} 64. Rc7+ {[%emt 0:00:34]} Kd4 {[%emt 0:00:30]} 65. Rc8 {[%emt 0:00:27]} Ke4 {[%emt 0:00:30]} 66. Re8 {[%emt 0:00:35]} Rh5 {[%emt 0:00:30]} 67. Bc1 {[%emt 0:00:31]} Rxh4 {[%emt 0:00:30]} 68. Ra8 {[%emt 0:00:02]} Nc4 {[%emt 0:00:30]} 69. Rd8 {[%emt 0:00:38]} Ne3+ {[%emt 0:00:30]} 70. Kf2 {[%emt 0:00:50]} Rf4+ {[%emt 0:02:30]} 71. Kg3 {[%emt 0:00:20]} Rf3+ {[%emt 0:00:30]} 72. Kh2 {[%emt 0:00:39]} Nd5 {[%emt 0:00:30]} 73. Re8+ {[%emt 0:00:52]} Kd4 {[%emt 0:00:30]} 74. Kg2 {[%emt 0:00:00]} Rf5 {[%emt 0:00:00]} 75. Bb2+ {[%emt 0:01:01]} Kc4 {[%emt 0:00:00]} 76. Rc8+ {[%emt 0:00:03]} Kb3 {[%emt 0:00:30]} 77. Bc1 {[%emt 0:00:11]} Nc3 {[%emt 0:00:00]} 78. Rd8 {[%emt 0:00:40]} Kc2 {[%emt 0:00:00]} 79. Bh6 {[%emt 0:00:32]} Ne4 {[%emt 0:01:30]} 80. Rc8+ {[%emt 0:00:23]} Kd1 {[%emt 0:00:30]} 81. Rd8 {[%emt 0:00:36]} d2 {[%emt 0:02:30]} 82. Bxd2 {[%emt 0:00:30]} Nxd2 {[%emt 0:00:30]} 83. Kg3 {[%emt 0:00:30]} Kc2 {[%emt 0:00:30]} 84. Kg4 {[%emt 0:00:30]} Rf7 {[%emt 0:00:00]} 85. Rd4 {[%emt 0:00:11]} Kc3 {[%emt 0:01:00]} 86. Rf4 {[%emt 0:00:30]} Rg7+ {[%emt 0:00:00]} 87. Kf5 {[%emt 0:00:25]} Kd3 {[%emt 0:00:00]} 88. Ke5 {[%emt 0:00:20]} Ke3 {[%emt 0:00:00]} 89. Ra4 {[%emt 0:00:08]} Rg5+ {[%emt 0:00:00]} 90. Kf6 {[%emt 0:00:40]} Rb5 {[%emt 0:00:00]} 91. Ke6 {[%emt 0:00:00]} Ne4 {[%emt 0:00:00]} 92. Ra3+ {[%emt 0:00:00]} Kf4 {[%emt 0:00:30]} 93. Ra1 {[%emt 0:00:15]} Re5+ {[%emt 0:00:30]} 94. Kd7 $15 {[%emt 0:00:05]} Rc5 {[%emt 0:00:30]} 95. Rf1+ {[%emt 0:00:43]} Ke5 {[%emt 0:00:00]} 96. Re1 {[%emt 0:00:10]} Rc3 {[%emt 0:00:00]} 97. Re2 {[%emt 0:00:53]} Kd5 {[%emt 0:00:30]} 98. Rh2 {[%emt 0:00:21]} Nc5+ {[%emt 0:00:30]} 99. Ke7 {[%emt 0:00:40]} Re3+ {[%emt 0:00:30]} 100. Kf6 {[%emt 0:00:00]} Nd7+ {[%emt 0:00:30]} 101. Kf5 {[%emt 0:00:44]} Rf3+ {[%emt 0:00:00]} 102. Kg5 {[%emt 0:00:07]} Ne5 {[%emt 0:00:00]} 103. Ra2 {[%emt 0:00:32]} Nc6 {[%emt 0:00:30]} 104. Rd2+ {[%emt 0:00:23]} Ke6 {[%emt 0:00:30]} 105. Ra2 {[%emt 0:00:49]} Rf5+ {[%emt 0:00:00]} 106. Kg4 {[%emt 0:00:07]} Ne5+ {[%emt 0:00:00]} 107. Kg3 {[%emt 0:00:10]} Rf3+ {[%emt 0:00:30]} 108. Kg2 {[%emt 0:00:00]} Rc3 {[%emt 0:00:00]} 109. Ra8 {[%emt 0:00:03]} Kf5 {[%emt 0:01:00]} 110. Rf8+ {[%emt 0:00:50]} Ke4 {[%emt 0:00:30]} 111. Re8 {[%emt 0:00:00]} Ra3 {[%emt 0:00:00]} 112. Kf2 {[%emt 0:00:01]} Rf3+ {[%emt 0:00:00]} 113. Kg2 {[%emt 0:00:58]} Rf7 {[%emt 0:00:00]} 114. Kg3 {[%emt 0:00:02]} Rf5 {[%emt 0:00:00]} 115. Re7 {[%emt 0:00:56]} Rg5+ {[%emt 0:00:00]} 116. Kf2 {[%emt 0:00:00]} Kf4 {[%emt 0:00:00]} 117. Ra7 {[%emt 0:00:17]} Nd3+ {[%emt 0:00:30]} 118. Ke2 {[%emt 0:00:30]} Nc5 {[%emt 0:00:30]} 119. Rf7+ {[%emt 0:00:30]} Ke4 {[%emt 0:00:30]} 120. Re7+ {[%emt 0:00:30]} Kd4 {[%emt 0:00:30]} 121. Re8 {[%emt 0:00:30]} Rd5 {[%emt 0:00:30]} 122. Kf3 {[%emt 0:00:30]} Rd7 {[%emt 0:00:30]} 123. Re1 {[%emt 0:00:30]} Rf7+ {[%emt 0:00:30]} 124. Kg4 {[%emt 0:00:30]} Ne4 {[%emt 0:00:30]} 125. Ra1 {[%emt 0:00:30]} Rg7+ {[%emt 0:00:30]} 126. Kf5 {[%emt 0:00:30]} Rg5+ {[%emt 0:00:30]} 127. Kf4 {[%emt 0:00:30]} Rh5 {[%emt 0:00:30]} 128. Rd1+ {[%emt 0:00:30]} Kc4 {[%emt 0:00:30]} 1/2-1/2

[Event "World Junior U20 Open 2018"]
[Site "Gebze"]
[Date "2018.09.07"]
[Round "4.63"]
[White "Ozenir, Ekin Baris"]
[Black "Ozgur, Tibet Kagan"]
[Result "0-1"]
[ECO "E43"]
[WhiteElo "2303"]
[BlackElo "2056"]
[Annotator "NA"]
[PlyCount "119"]
[EventDate "2018.09.05"]
[EventType "swiss"]
[EventCountry "TUR"]
[SourceTitle "playchess.com"]
[Source "ChessBase"]
[SourceQuality "1"]
[TimeControl "40/5400+30:1800+30"]

1. d4 Nf6 2. c4 e6 3. Nc3 Bb4 4. e3 b6 5. Be2 Bb7 6. Bf3 Qc8 7. Bd2 O-O 8. Rc1 d6 9. a3 Bxc3 10. Bxc3 Ne4 11. d5 Nxc3 12. Rxc3 Nd7 13. Nh3 a5 14. O-O a4 15. e4 Nc5 16. Re1 {[%emt 0:30:00]} e5 {[%emt 0:38:00]} 17. Bg4 {[%emt 0:07:30]} Qe8 {[%emt 0:01:30]} 18. Rg3 {[%emt 0:03:30]} Bc8 {[%emt 0:03:30]} 19. Bxc8 {[%emt 0:07:30]} Rxc8 {[%emt 0:01:30]} 20. Qg4 {[%emt 0:00:30]} g6 {[%emt 0:00:30]} 21. Ng5 {[%emt 0:02:30]} f6 {[%emt 0:02:30]} 22. Nf3 {[%emt 0:00:30]} Qd7 {[%emt 0:02:30]} 23. Qh4 {[%emt 0:02:30]} Nd3 {[%emt 0:13:30]} 24. Rb1 {[%emt 0:04:30]} Nf4 {[%emt 0:00:30]} 25. Re1 {[%emt 0:01:30]} h5 {[%emt 0:11:30]} 26. Nd2 {[%emt 0:09:30]} g5 {[%emt 0:01:30]} 27. Nf3 {[%emt 0:01:30]} Kh8 {[%emt 0:08:21]} 28. Nxg5 {[%emt 0:02:30]} fxg5 {[%emt 0:00:02]} 29. Qxg5 {[%emt 0:00:00]} Qh7 {[%emt 0:03:07]} 30. Ree3 {[%emt 0:01:00]} Rf7 {[%emt 0:00:50]} 31. Qh4 {[%emt 0:02:30]} Rcf8 {[%emt 0:02:41]} 32. Rg5 {[%emt 0:01:30]} Rg7 {[%emt 0:01:39]} 33. Rxg7 {[%emt 0:02:30]} Qxg7 {[%emt 0:00:10]} 34. g3 {[%emt 0:00:30]} Qg5 {[%emt 0:00:58]} 35. Qxg5 {[%emt 0:01:30]} Nh3+ {[%emt 0:00:03]} 36. Kf1 {[%emt 0:01:30]} Nxg5 {[%emt 0:00:30]} 37. Ke2 {[%emt 0:00:30]} Nh3 {[%emt 0:00:05]} 38. f3 {[%emt 0:00:30]} Kg7 {[%emt 0:00:46]} 39. Kf1 {[%emt 0:00:30]} Kg6 {[%emt 0:00:24]} 40. Ke2 {[%emt 0:00:00]} Ng5 {[%emt 0:00:00]} 41. Rc3 {[%emt 0:02:00]} Rh8 {[%emt 0:03:54]} 42. h4 {[%emt 0:03:30]} Nh7 {[%emt 0:00:30]} 43. Ke3 {[%emt 0:01:30]} Nf6 {[%emt 0:00:30]} 44. Rc1 {[%emt 0:00:30]} Nd7 {[%emt 0:00:30]} 45. Rg1 {[%emt 0:00:30]} Kf7 {[%emt 0:01:30]} 46. Rf1 {[%emt 0:00:30]} Rg8 {[%emt 0:00:30]} 47. Rg1 {[%emt 0:00:30]} Nc5 {[%emt 0:00:30]} 48. g4 {[%emt 0:01:30]} Nd7 {[%emt 0:02:30]} 49. Kd3 {[%emt 0:01:30]} hxg4 {[%emt 0:02:30]} 50. fxg4 {[%emt 0:00:30]} Nf6 {[%emt 0:00:00]} 51. g5 {[%emt 0:00:00]} Nh5 {[%emt 0:00:00]} 52. Kc3 {[%emt 0:00:00]} Kg6 {[%emt 0:02:30]} 53. Kb4 {[%emt 0:00:30]} Ra8 {[%emt 0:00:30]} 54. Rg2 {[%emt 0:01:30]} Nf4 {[%emt 0:00:30]} 55. Rg1 {[%emt 0:01:30]} Nd3+ {[%emt 0:00:30]} 56. Kc3 {[%emt 0:00:00]} Nc5 {[%emt 0:01:30]} 57. Rf1 {[%emt 0:01:00]} Nxe4+ {[%emt 0:01:30]} 58. Kd3 {[%emt 0:00:00]} Nc5+ {[%emt 0:00:30]} 59. Ke3 {[%emt 0:00:00]} Rh8 {[%emt 0:00:00]} 60. Rh1 {[%emt 0:00:30]} 0-1

[Event "World Junior U20 Open 2018"]
[Site "Gebze"]
[Date "2018.09.07"]
[Round "4.64"]
[White "Aydincelebi, Kagan"]
[Black "Tifferet, Shaked"]
[Result "1-0"]
[ECO "B50"]
[WhiteElo "2060"]
[BlackElo "2299"]
[Annotator "NA"]
[PlyCount "83"]
[EventDate "2018.09.05"]
[EventType "swiss"]
[EventCountry "TUR"]
[SourceTitle "playchess.com"]
[Source "ChessBase"]
[SourceQuality "1"]
[TimeControl "40/5400+30:1800+30"]

1. e4 c5 2. Nf3 d6 3. Bb5+ Bd7 4. Bxd7+ Nxd7 5. O-O Ngf6 6. Qe2 e6 7. b3 g6 8. Bb2 Bg7 9. c4 O-O 10. Nc3 Nh5 11. Rfd1 Nf4 12. Qf1 e5 13. Nd5 Nxd5 14. cxd5 f5 15. d3 f4 16. Nd2 g5 17. Qe2 Nf6 18. f3 Rf7 {[%emt 0:47:00]} 19. Bc3 {[%emt 0:20:30]} Bf8 {[%emt 0:00:30]} 20. Rab1 {[%emt 0:00:30]} Rg7 {[%emt 0:08:30]} 21. b4 {[%emt 0:00:30]} b6 {[%emt 0:00:30]} 22. bxc5 {[%emt 0:00:30]} bxc5 {[%emt 0:00:30]} 23. Nc4 {[%emt 0:04:30]} Qe8 {[%emt 0:01:30]} 24. Rb3 {[%emt 0:02:30]} Rb8 {[%emt 0:07:30]} 25. Rdb1 {[%emt 0:11:30]} Rxb3 {[%emt 0:00:30]} 26. Rxb3 {[%emt 0:00:00]} h5 {[%emt 0:00:30]} 27. Qb2 {[%emt 0:04:00]} g4 {[%emt 0:07:30]} 28. Rb7 {[%emt 0:00:30]} Nd7 {[%emt 0:05:30]} 29. Qe2 {[%emt 0:02:30]} Qc8 {[%emt 0:01:30]} 30. Na5 {[%emt 0:01:30]} Be7 {[%emt 0:05:39]} 31. Rxa7 {[%emt 0:09:30]} c4 {[%emt 0:07:07]} 32. d4 {[%emt 0:09:30]} exd4 {[%emt 0:06:40]} 33. Bxd4 {[%emt 0:00:30]} Ne5 {[%emt 0:00:30]} 34. Kh1 {[%emt 0:00:30]} gxf3 {[%emt 0:00:30]} 35. gxf3 {[%emt 0:00:30]} Qb8 {[%emt 0:03:01]} 36. Qb2 {[%emt 0:03:30]} Qc8 {[%emt 0:01:37]} 37. Nc6 {[%emt 0:03:30]} Nxc6 {[%emt 0:01:22]} 38. dxc6 {[%emt 0:00:30]} c3 {[%emt 0:00:31]} 39. Bxc3 {[%emt 0:01:30]} Qh3 {[%emt 0:00:29]} 40. Qf2 {[%emt 0:00:30]} Bf6 41. Rxg7+ {[%emt 0:02:30]} Kxg7 {[%emt 0:06:34]} 42. Qg2+ {[%emt 0:00:00]} 1-0

[Event "World Junior U20 Open 2018"]
[Site "Gebze"]
[Date "2018.09.07"]
[Round "4.65"]
[White "Milosevic, Milos"]
[Black "Baylav, Can"]
[Result "1/2-1/2"]
[ECO "B51"]
[WhiteElo "2292"]
[BlackElo "2026"]
[Annotator "NA"]
[PlyCount "106"]
[EventDate "2018.09.05"]
[EventType "swiss"]
[EventCountry "TUR"]
[SourceTitle "playchess.com"]
[Source "ChessBase"]
[SourceQuality "1"]
[TimeControl "40/5400+30:1800+30"]

1. e4 {[%emt 0:05:30]} c5 {[%emt 0:00:30]} 2. Nf3 {[%emt 0:00:30]} d6 {[%emt 0:00:30]} 3. Bb5+ {[%emt 0:00:00]} Nd7 {[%emt 0:00:00]} 4. c4 {[%emt 0:00:30]} Ngf6 {[%emt 0:01:00]} 5. Nc3 {[%emt 0:00:30]} a6 {[%emt 0:00:30] B51: Sicilian: Moscow Variation (3 Bb5+) without 3...Bd7} (5... g6 6. O-O Bg7 7. Ba4 O-O 8. h3 Nb6 9. Bb3 e5 10. d3 Ne8 11. Bg5 f6 12. Be3 f5 13. Bg5 Bf6 {0-1 (43) Safarli,E (2664)-Giri,A (2790) Shamkir 2016 CBM 173 [Mekhitarian,K]}) 6. Ba4 {[%emt 0:02:00]} e6 {[%emt 0:01:30]} 7. O-O {[%emt 0:00:30]} Be7 {[%emt 0:01:30]} 8. d3 {[%emt 0:04:30]} O-O {[%emt 0:05:30]} 9. h3 {[%emt 0:01:30]} Qc7 {[%emt 0:01:30]} 10. Be3 $146 {[%emt 0:01:30]} ({Predecessor:} 10. Nh2 Nb6 11. Bb3 d5 12. f4 dxc4 13. dxc4 {½-½ (29) Bosco,R (2265)-Yabiansky,M Buenos Aires 1992}) 10... Nb6 {[%emt 0:13:30]} 11. Bb3 {[%emt 0:00:30]} d5 {[%emt 0:02:30]} 12. cxd5 {[%emt 0:01:30]} exd5 {[%emt 0:00:30]} 13. e5 {[%emt 0:04:30]} d4 {[%emt 0:07:30]} 14. exf6 {[%emt 0:03:30]} Bxf6 15. Ne4 dxe3 16. Nxf6+ gxf6 17. fxe3 Qg3 18. Qe1 Qxe1 {[%emt 0:40:00]} 19. Nxe1 {[%emt 0:27:30]} Kg7 {[%emt 0:00:30]} 20. Rc1 {[%emt 0:00:30]} Nd7 {[%emt 0:00:30]} 21. d4 {[%emt 0:00:30]} b6 {[%emt 0:00:30]} 22. Nd3 {[%emt 0:00:30]} Re8 {[%emt 0:05:30]} 23. Rf3 {[%emt 0:00:30]} Bb7 {[%emt 0:01:30]} 24. Rg3+ {[%emt 0:01:30]} Kf8 {[%emt 0:00:00]} 25. dxc5 {[%emt 0:15:30]} Be4 {[%emt 0:03:00]} 26. c6 {[%emt 0:03:30]} Ne5 {[%emt 0:01:30]} 27. Nxe5 {[%emt 0:01:30]} Rxe5 {[%emt 0:00:30]} 28. Rg4 $16 {[%emt 0:04:30]} Rc8 {[%emt 0:02:30]} 29. c7 {[%emt 0:00:30]} f5 {[%emt 0:06:30]} 30. Rf4 {[%emt 0:00:30]} Re7 {[%emt 0:08:30]} 31. g4 {[%emt 0:01:30]} fxg4 {[%emt 0:00:30]} 32. hxg4 {[%emt 0:00:30]} b5 {[%emt 0:01:30]} 33. a4 {[%emt 0:03:30]} Bb7 {[%emt 0:05:30]} 34. axb5 {[%emt 0:00:30]} axb5 {[%emt 0:00:00]} 35. Rf5 {[%emt 0:00:30]} Rcxc7 {[%emt 0:01:00]} 36. Rxc7 {[%emt 0:00:30]} Rxc7 {[%emt 0:00:00]} 37. Rxb5 {[%emt 0:00:30]} Bc8 {[%emt 0:04:00]} 38. Rb4 {[%emt 0:00:30]} Kg7 {[%emt 0:03:30]} 39. Kf2 {[%emt 0:01:30]} Kg6 {[%emt 0:01:30]} 40. Kg3 {[%emt 0:00:00]} Bd7 {[%emt 0:00:00]} 41. Rc4 {[%emt 0:06:00]} Ra7 {[%emt 0:23:00]} 42. Bc2+ {[%emt 0:01:30]} Kg7 {[%emt 0:00:30]} 43. g5 {[%emt 0:05:30]} h6 {[%emt 0:00:30]} 44. gxh6+ {[%emt 0:00:30]} Kxh6 {[%emt 0:01:30]} 45. b4 {[%emt 0:02:30]} Ra2 {[%emt 0:01:30]} 46. Rc7 {[%emt 0:01:30]} Be6 {[%emt 0:01:30]} 47. b5 {[%emt 0:03:30]} Rb2 {[%emt 0:00:30]} 48. Rc5 {[%emt 0:00:30]} Bd7 {[%emt 0:01:30]} 49. Bd3 {[%emt 0:00:30]} Rb3 {[%emt 0:00:00]} 50. Rd5 {[%emt 0:00:30]} Be6 {[%emt 0:00:00]} 51. Rd6 {[%emt 0:00:30]} Kg5 {[%emt 0:01:30]} 52. Rd4 {[%emt 0:04:30]} Bf5 {[%emt 0:01:30]} 53. Bxf5 {[%emt 0:00:30]} Kxf5 {[%emt 0:00:30]} 1/2-1/2

[Event "World Junior U20 Open 2018"]
[Site "Gebze"]
[Date "2018.09.07"]
[Round "4.68"]
[White "Helander, Benjamin"]
[Black "Vanczak, Tamas"]
[Result "0-1"]
[ECO "B12"]
[WhiteElo "1994"]
[BlackElo "2276"]
[Annotator "NA"]
[PlyCount "54"]
[EventDate "2018.09.05"]
[EventType "swiss"]
[EventCountry "TUR"]
[SourceTitle "playchess.com"]
[Source "ChessBase"]
[SourceQuality "1"]
[TimeControl "40/5400+30:1800+30"]

1. e4 {[%emt 0:00:30]} c6 {[%emt 0:00:30]} 2. d4 {[%emt 0:01:30]} d5 {[%emt 0:00:30]} 3. e5 {[%emt 0:00:30]} g6 {[%emt 0:00:30]} 4. h3 {[%emt 0:03:00]} Bg7 {[%emt 0:01:30]} 5. Nf3 {[%emt 0:01:30]} h5 {[%emt 0:03:30]} 6. Bd3 {[%emt 0:02:30]} Nh6 {[%emt 0:01:30]} 7. Bg5 {[%emt 0:04:30]} Qb6 {[%emt 0:02:30]} 8. Qc1 {[%emt 0:09:30]} Bf5 {[%emt 0:02:30]} 9. Bxf5 {[%emt 0:00:30]} Nxf5 {[%emt 0:00:30]} 10. c3 {[%emt 0:01:30]} f6 {[%emt 0:06:30]} 11. exf6 {[%emt 0:11:30]} exf6 {[%emt 0:00:30]} 12. Bf4 $15 {[%emt 0:02:30]} Nd7 13. h4 Qa6 {[%emt 0:25:30]} 14. Na3 {[%emt 0:43:00]} O-O {[%emt 0:00:30]} 15. Nc2 {[%emt 0:02:30]} Rae8+ {[%emt 0:08:30]} 16. Ne3 {[%emt 0:00:30]} Re4 {[%emt 0:01:30]} 17. g3 {[%emt 0:02:30]} Rfe8 {[%emt 0:03:30]} 18. Qd2 {[%emt 0:03:30]} Nf8 {[%emt 0:05:30]} 19. O-O-O {[%emt 0:13:30]} Qxa2 {[%emt 0:07:30]} 20. Rde1 {[%emt 0:04:30]} Nxe3 {[%emt 0:03:30]} 21. Bxe3 {[%emt 0:00:30]} Nd7 {[%emt 0:02:30]} 22. Ng1 {[%emt 0:01:30]} Nb6 {[%emt 0:03:30]} 23. Nh3 {[%emt 0:08:30]} Nc4 {[%emt 0:01:30]} 24. Qc2 {[%emt 0:00:30]} Qa1+ {[%emt 0:00:30]} 25. Qb1 {[%emt 0:00:30]} Qxb1+ {[%emt 0:00:30]} 26. Kxb1 {[%emt 0:00:00]} Nxe3 {[%emt 0:00:30]} 27. fxe3 {[%emt 0:00:00]} Rxe3 {[%emt 0:00:00]} 0-1

[Event "World Junior U20 Open 2018"]
[Site "Gebze"]
[Date "2018.09.07"]
[Round "4.69"]
[White "Ozsakallioglu, Okan"]
[Black "Yaran, Siar"]
[Result "1/2-1/2"]
[ECO "E05"]
[WhiteElo "1955"]
[BlackElo "2271"]
[Annotator "ChessBase"]
[PlyCount "54"]
[EventDate "2018.09.05"]
[EventType "swiss"]
[EventCountry "TUR"]
[SourceTitle "playchess.com"]
[Source "ChessBase"]
[SourceQuality "1"]
[TimeControl "40/5400+30:1800+30"]

1. d4 e6 2. Nf3 Nf6 3. g3 Be7 4. Bg2 O-O 5. c4 d5 6. O-O dxc4 7. Qc2 a6 8. a4 Bd7 9. Qxc4 Bc6 10. Bf4 Nbd7 11. Nbd2 Nd5 12. Rfc1 Nxf4 13. gxf4 Nf6 14. e3 Rc8 15. Qc2 g6 16. Nb3 Be4 17. Qe2 {[%emt 0:15:30]} c6 {[%emt 1:00:30]} 18. Nbd2 {[%emt 0:03:30]} Bxf3 {[%emt 0:00:30]} 19. Bxf3 {[%emt 0:00:30]} Kh8 {[%emt 0:03:30]} 20. Nc4 {[%emt 0:01:30]} Rg8 {[%emt 0:01:30]} 21. Ne5 {[%emt 0:00:00]} Qf8 {[%emt 0:01:30]} 22. Kh1 {[%emt 0:00:00]} Rc7 {[%emt 0:00:30]} 23. Qd2 {[%emt 0:00:30]} Bb4 {[%emt 0:00:30]} 24. Qd3 {[%emt 0:01:30]} Nd7 {[%emt 0:03:30]} 25. Qe4 {[%emt 0:06:30]} Nf6 {[%emt 0:03:30]} 26. Qd3 {[%emt 0:00:00]} Nd7 {[%emt 0:03:30]} 27. Qe4 {[%emt 0:00:00]} Nf6 {[%emt 0:01:30]} 1/2-1/2